Workbook

Sheet Лист1
A1: Школа | C1: МОУ ОШ №104 | F1: Утвердил: | G1: должность | H1: директор
A2: Типовое примерное меню приготавливаемых блюд | G2: фамилия | H2: Лымарь Елена Владимировна
A3: Возрастная категория | E3: 7-11 лет | G3: дата | H3: 26 | I3: 1 | J3: 2026
H4: день | I4: месяц | J4: год
A5: Неделя | B5: День недели | C5: Прием пищи | D5: Раздел меню | E5: Блюда | F5: Вес блюда, г | G5: Белки | H5: Жиры | I5: Углеводы | J5: Калорийность | K5: № рецептуры | L5: Цена
A6: 1 | B6: 1 | C6: Завтрак | D6: гор.блюдо | E6: каша молочная из риса и пшена дружба с маслом | F6: 200.00 | G6: 4.18 | H6: 3.56 | I6: 22.76 | J6: 139.80 | K6: ТТК №103
D7: гор.напиток | E7: чай с сахаром | F7: 200.00 | G7: 0.10 | H7: 0.03 | I7: 10.67 | J7: 42.57 | K7: ТТК №302
D8: хлеб | E8: хлеб пшеничный | F8: 40.00 | G8: 3.16 | H8: 0.40 | I8: 19.32 | J8: 94.00 | K8: ТТК №6
D9: гор.блюдо | E9: блинчики с молоком цельным сгущенным с сахаром | F9: 90.00 | G9: 8.49 | H9: 12.39 | I9: 30.41 | J9: 267.11 | K9: ТТК №387
D13: итого | F13: =F6+F7+F8+F9+F10+F11 -> 530 | G13: =SUM(G6:G11) -> 15.93 | H13: =SUM(H6:H11) -> 16.38 | I13: =SUM(I6:I11) -> 83.16 | J13: =SUM(J6:J11) -> 543.48 | L13: 135.14
A14: =A6 -> 1 | B14: =B6 -> 1 | C14: Обед | D14: закуска
D15: 1 блюдо
D16: 2 блюдо
D17: гарнир
D18: напиток
D19: хлеб бел.
D20: хлеб черн.
D23: итого | F23: =SUM(F14:F22) -> 0 | G23: =SUM(G14:G22) -> 0 | H23: =SUM(H14:H22) -> 0 | I23: =SUM(I14:I22) -> 0 | J23: =SUM(J14:J22) -> 0 | L23: =SUM(L14:L22) -> 0
A24: =A6 -> 1 | B24: =B6 -> 1 | C24: Итого за день: | F24: =F13+F23 -> 530 | G24: =СУММА+G23 -> 15.93 | H24: =H13+H23 -> 16.38 | I24: =I13+I23 -> 83.16 | J24: =J13+J23 -> 543.48 | L24: =L13 -> 135.14
A25: 1 | B25: 2 | C25: Завтрак | D25: гор.блюдо | E25: котлета домашняя | F25: 90.00 | G25: 9.83 | H25: 13.25 | I25: 12.20 | J25: 207.37 | K25: ТТК №896
D26: гор.напиток | E26: чай с сахаром и лимоном | F26: 200.00 | G26: 0.15 | H26: 0.04 | I26: 10.82 | J26: 44.22 | K26: ТТК №301
D27: хлеб | E27: хлеб пшеничный | F27: 50.00 | G27: 3.83 | H27: 0.49 | I27: 23.43 | J27: 113.98 | K27: ТТК №6
D28: гор.блюдо | E28: макаронные изделия отварные | F28: 160 | G28: 5.94 | H28: 3.02 | I28: 28.13 | J28: 163.46 | K28: ТТК №129
D32: итого | F32: =SUM(F25:F30) -> 500 | G32: =SUM(G25:G30) -> 19.75 | H32: =SUM(H25:H30) -> 16.80 | I32: =SUM(I25:I30) -> 74.58 | J32: =SUM(J25:J30) -> 529.03 | L32: 135.14
A33: =A25 -> 1 | B33: =B25 -> 2 | C33: Обед | D33: закуска
D34: 1 блюдо
D35: 2 блюдо
D36: гарнир
D37: напиток
D38: хлеб бел.
D39: хлеб черн.
D42: итого | F42: 0 | G42: =SUM(G33:G41) -> 0 | H42: =SUM(H33:H41) -> 0 | I42: =SUM(I33:I41) -> 0 | J42: =SUM(J33:J41) -> 0 | L42: =SUM(L33:L41) -> 0
A43: =A25 -> 1 | B43: =B25 -> 2 | C43: Итого за день: | F43: =F32+F42 -> 500 | G43: =G32+G42 -> 19.75 | H43: =H32+H42 -> 16.80 | I43: =I32+I42 -> 74.58 | J43: =J32+J42 -> 529.03 | L43: =L32+L42 -> 135.14
A44: 1 | B44: 3 | C44: Завтрак | D44: гор.блюдо | E44: плов из птицы | F44: 150.00 | G44: 13.00 | H44: 14.64 | I44: 31.57 | J44: 310.04 | K44: ТТК №67
D45: гор.напиток | E45: чай с сахаром каркаде | F45: 200.00 | G45: 0.01 | H45: 0.00 | I45: 10.71 | J45: 42.81 | K45: ТТК №241
D46: хлеб | E46: хлеб пшеничный | F46: 50.00 | G46: 3.83 | H46: 0.49 | I46: 23.43 | J46: 113.98 | K46: ТТК №6
D47: закуска | E47: огурец соленый | F47: 100.00 | G47: 0.80 | H47: 0.10 | I47: 1.70 | J47: 10.90 | K47: ТТК №4
D51: итого | F51: =SUM(F44:F50) -> 500 | G51: =SUM(G44:G50) -> 17.64 | H51: =SUM(H44:H50) -> 15.23 | I51: =SUM(I44:I50) -> 67.41 | J51: =SUM(J44:J50) -> 477.73 | L51: 135.14
A52: =A44 -> 1 | B52: =B44 -> 3 | C52: Обед | D52: закуска
D53: 1 блюдо
D54: 2 блюдо
D55: гарнир
D56: напиток
D57: хлеб бел.
D58: хлеб черн.
D61: итого | F61: =SUM(F52:F60) -> 0 | G61: =SUM(G52:G60) -> 0 | H61: =SUM(H52:H60) -> 0 | I61: =SUM(I52:I60) -> 0 | J61: =SUM(J52:J60) -> 0 | L61: =SUM(L52:L60) -> 0
A62: =A44 -> 1 | B62: =B44 -> 3 | C62: Итого за день: | F62: =F51+F61 -> 500 | G62: =G51+G61 -> 17.64 | H62: =H51+H61 -> 15.23 | I62: =I51+I61 -> 67.41 | J62: =J51+J61 -> 477.73 | L62: =L51+L61 -> 135.14
A63: 1 | B63: 4 | C63: Завтрак | D63: гор.блюдо | E63: каша гречневая молочная с маслом | F63: 200.00 | G63: 9.36 | H63: 11.39 | I63: 26.14 | J63: 244.51 | K63: ТТК №515
D64: гор.напиток | E64: чай с сахаром | F64: 200.00 | G64: 0.10 | H64: 0.03 | I64: 10.67 | J64: 42.57 | K64: ТТК №302
D65: хлеб | E65: хлеб пшеничный | F65: 50.00 | G65: 3.83 | H65: 0.49 | I65: 23.43 | J65: 113.98 | K65: ТТК №6
D66: сладкое | E66: печенье | F66: 20.00 | G66: 1.16 | H66: 3.69 | I66: 8.38 | J66: 71.37 | K66: ТТК №473
D67: фрукты | E67: фрукты свежие (яблоко) | F67: 180 | G67: 0.70 | H67: 0.70 | I67: 17.11 | J67: 82.06 | K67: №338
D70: итого | F70: =SUM(F63:F68) -> 650 | G70: =SUM(G63:G69) -> 15.15 | H70: =SUM(H63:H69) -> 16.30 | I70: =SUM(I63:I69) -> 85.73 | J70: =SUM(J63:J69) -> 554.49 | L70: 135.14
A71: =A63 -> 1 | B71: =B63 -> 4 | C71: Обед | D71: закуска
D72: 1 блюдо
D73: 2 блюдо
D74: гарнир
D75: напиток
D76: хлеб бел.
D77: хлеб черн.
D80: итого | F80: =SUM(F71:F79) -> 0 | G80: =SUM(G71:G79) -> 0 | H80: =SUM(H71:H79) -> 0 | I80: =SUM(I71:I79) -> 0 | J80: =SUM(J71:J79) -> 0 | L80: =SUM(L71:L79) -> 0
A81: =A63 -> 1 | B81: =B63 -> 4 | C81: Итого за день: | F81: =F70+F80 -> 650 | G81: =G70+G80 -> 15.15 | H81: =H70+H80 -> 16.30 | I81: =I70+I80 -> 85.73 | J81: =J70+J80 -> 554.49 | L81: =L70+L80 -> 135.14
A82: 1 | B82: 5 | C82: Завтрак | D82: гор.блюдо | E82: гречка по купечески с филе куриным | F82: 150.00 | G82: 10.17 | H82: 11.92 | I82: 24.42 | J82: 245.64 | K82: ТТК №468
D83: гор.напиток | E83: Чай с сахаром и лимоном | F83: 200.00 | G83: 0.15 | H83: 0.04 | I83: 10.82 | J83: 44.22 | K83: ТТК №301
D84: хлеб | E84: хлеб пшеничный | F84: 40.00 | G84: 3.16 | H84: 0.40 | I84: 19.32 | J84: 94.00 | K84: ТТК №6
D85: гор.блюдо | E85: омлет | F85: 60.00 | G85: 5.12 | H85: 7.51 | I85: 1.03 | J85: 92.19 | K85: ТТК №72
D86: закуска | E86: свекла отварная | F86: 100 | G86: 1.46 | H86: 0.10 | I86: 8.54 | J86: 40.90 | K86: ТТК №5
D89: итого | F89: =SUM(F82:F87) -> 550 | G89: =SUM(G82:G88) -> 20.06 | H89: =SUM(H82:H88) -> 19.97 | I89: =SUM(I82:I88) -> 64.13 | J89: =SUM(J82:J88) -> 516.95 | L89: 135.14
A90: =A82 -> 1 | B90: =B82 -> 5 | C90: Обед | D90: закуска
D91: 1 блюдо
D92: 2 блюдо
D93: гарнир
D94: напиток
D95: хлеб бел.
D96: хлеб черн.
D99: итого | F99: =SUM(F90:F98) -> 0 | G99: =SUM(G90:G98) -> 0 | H99: =SUM(H90:H98) -> 0 | I99: =SUM(I90:I98) -> 0 | J99: =SUM(J90:J98) -> 0 | L99: =SUM(L90:L98) -> 0
A100: =A82 -> 1 | B100: =B82 -> 5 | C100: Итого за день: | F100: =F89+F99 -> 550 | G100: =G89+G99 -> 20.06 | H100: =H89+H99 -> 19.97 | I100: =I89+I99 -> 64.13 | J100: =J89+J99 -> 516.95 | L100: =L89+L99 -> 135.14
A101: 2 | B101: 1 | C101: Завтрак | D101: гор.блюдо | E101: котлеты рубленые из птицы | F101: 90.00 | G101: 9.68 | H101: 12.93 | I101: 9.56 | J101: 193.33 | K101: ТТК №62
D102: гор.напиток | E102: чай с сахаром | F102: 200.00 | G102: 0.10 | H102: 0.03 | I102: 10.67 | J102: 42.57 | K102: ТТК №302
D103: хлеб | E103: хлеб пшеничный | F103: 60.00 | G103: 4.74 | H103: 0.60 | I103: 28.98 | J103: 141.00 | K103: ТТК №6
D104: гор.блюдо | E104: макаронные изделия отварные | F104: 150.00 | G104: 5.56 | H104: 2.91 | I104: 25.87 | J104: 151.91 | K104: ТТК №129
D108: итого | F108: =SUM(F101:F105) -> 500 | G108: =SUM(G101:G107) -> 20.08 | H108: =SUM(H101:H107) -> 16.47 | I108: =SUM(I101:I107) -> 75.08 | J108: =SUM(J101:J107) -> 528.81 | L108: 135.14
A109: =A101 -> 2 | B109: =B101 -> 1 | C109: Обед | D109: закуска
D110: 1 блюдо
D111: 2 блюдо
D112: гарнир
D113: напиток
D114: хлеб бел.
D115: хлеб черн.
D118: итого | F118: =SUM(F109:F117) -> 0 | G118: =SUM(G109:G117) -> 0 | H118: =SUM(H109:H117) -> 0 | I118: =SUM(I109:I117) -> 0 | J118: =SUM(J109:J117) -> 0 | L118: =SUM(L109:L117) -> 0
A119: =A101 -> 2 | B119: =B101 -> 1 | C119: Итого за день: | F119: =F108+F118 -> 500 | G119: =G108+G118 -> 20.08 | H119: =H108+H118 -> 16.47 | I119: =I108+I118 -> 75.08 | J119: =J108+J118 -> 528.81 | L119: =L108+L118 -> 135.14
A120: 2 | B120: 2 | C120: Завтрак | D120: гор.блюдо | E120: каша молочная кукурузная с творогом | F120: 200.00 | G120: 6.84 | H120: 7.63 | I120: 30.28 | J120: 217.15 | K120: ТТК №653
D121: гор.напиток | E121: чай с сахаром и лимоном | F121: 200.00 | G121: 0.15 | H121: 0.04 | I121: 10.82 | J121: 44.22 | K121: ТТК №301
D122: хлеб | E122: бутерброд с сыром 35/10/5 | F122: 50.00 | G122: 5.13 | H122: 6.93 | I122: 16.98 | J122: 151.70 | K122: ТТК №380
D123: хлеб | E123: хлеб пшеничный | F123: 50.00 | G123: 3.83 | H123: 0.49 | I123: 23.43 | J123: 113.98 | K123: ТТК №6
D127: итого | F127: =SUM(F120:F126) -> 500 | G127: =SUM(G120:G126) -> 15.95 | H127: =SUM(H120:H126) -> 15.09 | I127: =SUM(I120:I126) -> 81.51 | J127: =SUM(J120:J126) -> 527.05 | L127: 135.14
A128: =A120 -> 2 | B128: =B120 -> 2 | C128: Обед | D128: закуска
D129: 1 блюдо
D130: 2 блюдо
D131: гарнир
D132: напиток
D133: хлеб бел.
D134: хлеб черн.
D137: итого | F137: =SUM(F128:F136) -> 0 | G137: =SUM(G128:G136) -> 0 | H137: =SUM(H128:H136) -> 0 | I137: =SUM(I128:I136) -> 0 | J137: =SUM(J128:J136) -> 0 | L137: =SUM(L128:L136) -> 0
A138: =A120 -> 2 | B138: =B120 -> 2 | C138: Итого за день: | F138: =F127+F137 -> 500 | G138: =G127+G137 -> 15.95 | H138: =H127+H137 -> 15.09 | I138: =I127+I137 -> 81.51 | J138: =J127+J137 -> 527.05 | L138: =L127+L137 -> 135.14
A139: 2 | B139: 3 | C139: Завтрак | D139: гор.блюдо | E139: вареники с картофелем со сливочным маслом | F139: 180.00 | G139: 9.51 | H139: 14.77 | I139: 46.44 | J139: 356.73 | K139: ТТК №513
D140: гор.напиток | E140: чай с сахаром каркаде | F140: 200.00 | G140: 0.01 | H140: 0.00 | I140: 10.71 | J140: 42.81 | K140: ТТК №241
D141: хлеб | E141: хлеб пшеничный | F141: 60.00 | G141: 4.74 | H141: 0.60 | I141: 28.98 | J141: 141.00 | K141: ТТК №6
D142: закуска | E142: помидор соленый | F142: 100.00 | G142: 1.07 | H142: 0.10 | I142: 1.55 | J142: 11.38 | K142: ТТК №27
D146: итого | F146: =SUM(F139:F145) -> 540 | G146: 14.90 | H146: 15.43 | I146: 87.06 | J146: 549.85 | L146: 135.14
A147: =A139 -> 2 | B147: =B139 -> 3 | C147: Обед | D147: закуска
D148: 1 блюдо
D149: 2 блюдо
D150: гарнир
D151: напиток
D152: хлеб бел.
D153: хлеб черн.
D156: итого | F156: =SUM(F147:F155) -> 0 | G156: =SUM(G147:G155) -> 0 | H156: =SUM(H147:H155) -> 0 | I156: =SUM(I147:I155) -> 0 | J156: =SUM(J147:J155) -> 0 | L156: =SUM(L147:L155) -> 0
A157: =A139 -> 2 | B157: =B139 -> 3 | C157: Итого за день: | F157: =F146+F156 -> 540 | G157: =G146+G156 -> 14.9 | H157: =H146+H156 -> 15.43 | I157: =I146+I156 -> 87.06 | J157: =J146+J156 -> 549.85 | L157: =L146+L156 -> 135.14
A158: 2 | B158: 4 | C158: Завтрак | D158: гор.блюдо | E158: котлета рыбная (минтай) | F158: 90.00 | G158: 10.70 | H158: 9.18 | I158: 12.64 | J158: 175.98 | K158: ТТК №77
D159: гор.напиток | E159: чай с сахаром | F159: 200.00 | G159: 0.10 | H159: 0.03 | I159: 10.67 | J159: 42.57 | K159: ТТК №302
D160: хлеб | E160: хлеб пшеничный | F160: 20.00 | G160: 1.58 | H160: 0.20 | I160: 9.66 | J160: 47.30 | K160: ТТК №6
D161: гор.блюдо | E161: макаронные изделия отварные | F161: 150.00 | G161: 5.56 | H161: 2.91 | I161: 25.87 | J161: 151.91 | K161: ТТК №129
D162: напиток | E162: сок/ нектарин в ассортименте | F162: 200 | G162: 0.97 | H162: 0.19 | I162: 19.59 | J162: 83.42 | K162: ТТК №343
D163: кондитерское изделие | E163: печенье | F163: 20 | G163: 1.16 | H163: 3.69 | I163: 8.38 | J163: 71.37 | K163: ТТК №473
D165: итого | F165: =SUM(F158:F164) -> 680 | G165: =SUM(G158:G164) -> 20.07 | H165: =SUM(H158:H164) -> 16.20 | I165: =SUM(I158:I164) -> 86.81 | J165: =SUM(J158:J164) -> 572.55 | L165: 135.14
A166: =A158 -> 2 | B166: =B158 -> 4 | C166: Обед | D166: закуска
D167: 1 блюдо
D168: 2 блюдо
D169: гарнир
D170: напиток
D171: хлеб бел.
D172: хлеб черн.
D175: итого | F175: =SUM(F166:F174) -> 0 | G175: =SUM(G166:G174) -> 0 | H175: =SUM(H166:H174) -> 0 | I175: =SUM(I166:I174) -> 0 | J175: =SUM(J166:J174) -> 0 | L175: =SUM(L166:L174) -> 0
A176: =A158 -> 2 | B176: =B158 -> 4 | C176: Итого за день: | F176: =F165+F175 -> 680 | G176: =G165+G175 -> 20.07 | H176: =H165+H175 -> 16.20 | I176: =I165+I175 -> 86.81 | J176: =J165+J175 -> 572.55 | L176: =L165+L175 -> 135.14
A177: 2 | B177: 5 | C177: Завтрак | D177: гор.блюдо | E177: каша молочная из риса и пшена дружба с маслом | F177: 200.00 | G177: 4.18 | H177: 3.56 | I177: 22.76 | J177: 139.80 | K177: ТТК №103
D178: гор.напиток | E178: чай с сахаром и лимоном | F178: 200.00 | G178: 0.15 | H178: 0.04 | I178: 10.82 | J178: 44.22 | K178: ТТК №301
D179: хлеб | E179: хлеб пшеничный | F179: 40.00 | G179: 3.16 | H179: 0.40 | I179: 19.32 | J179: 94.00 | K179: ТТК №6
D180: гор.блюдо | E180: блинчики с молоком цельным сгущеннным с сахаром | F180: 90.00 | G180: 8.49 | H180: 12.39 | I180: 30.41 | J180: 267.11 | K180: ТТК №387
D184: итого | F184: =SUM(F177:F183) -> 530 | G184: =SUM(G177:G183) -> 15.98 | H184: =SUM(H177:H183) -> 16.39 | I184: =SUM(I177:I183) -> 83.31 | J184: =SUM(J177:J183) -> 545.13 | L184: 135.14
A185: =A177 -> 2 | B185: =B177 -> 5 | C185: Обед | D185: закуска
D186: 1 блюдо
D187: 2 блюдо
D188: гарнир
D189: напиток
D190: хлеб бел.
D191: хлеб черн.
D194: итого | F194: =SUM(F185:F193) -> 0 | G194: =SUM(G185:G193) -> 0 | H194: =SUM(H185:H193) -> 0 | I194: =SUM(I185:I193) -> 0 | J194: =SUM(J185:J193) -> 0 | L194: =SUM(L185:L193) -> 0
A195: =A177 -> 2 | B195: =B177 -> 5 | C195: Итого за день: | F195: =F184+F194 -> 530 | G195: =G184+G194 -> 15.98 | H195: =H184+H194 -> 16.39 | I195: =I184+I194 -> 83.31 | J195: =J184+J194 -> 545.13 | L195: =L184+L194 -> 135.14
C196: Среднее значение за период: | F196: =(F24+F43+F62+F81+F100+F119+F138+F157+F176+F195)/(IF(F24=0,0,1)+IF(F43=0,0,1)+IF(F62=0,0,1)+IF(F81=0,0,1)+IF(F100=0,0,1)+IF(F119=0,0,1)+IF(F138=0,0,1)+IF(F157=0,0,1)+IF(F176=0,0,1)+IF(F195=0,0,1)) -> 548 | G196: =(G24+G43+G62+G81+G100+G119+G138+G157+G176+G195)/(IF(G24=0,0,1)+IF(G43=0,0,1)+IF(G62=0,0,1)+IF(G81=0,0,1)+IF(G100=0,0,1)+IF(G119=0,0,1)+IF(G138=0,0,1)+IF(G157=0,0,1)+IF(G176=0,0,1)+IF(G195=0,0,1)) -> 17.551 | H196: =(H24+H43+H62+H81+H100+H119+H138+H157+H176+H195)/(IF(H24=0,0,1)+IF(H43=0,0,1)+IF(H62=0,0,1)+IF(H81=0,0,1)+IF(H100=0,0,1)+IF(H119=0,0,1)+IF(H138=0,0,1)+IF(H157=0,0,1)+IF(H176=0,0,1)+IF(H195=0,0,1)) -> 16.426 | I196: =(I24+I43+I62+I81+I100+I119+I138+I157+I176+I195)/(IF(I24=0,0,1)+IF(I43=0,0,1)+IF(I62=0,0,1)+IF(I81=0,0,1)+IF(I100=0,0,1)+IF(I119=0,0,1)+IF(I138=0,0,1)+IF(I157=0,0,1)+IF(I176=0,0,1)+IF(I195=0,0,1)) -> 78.878 | J196: =(J24+J43+J62+J81+J100+J119+J138+J157+J176+J195)/(IF(J24=0,0,1)+IF(J43=0,0,1)+IF(J62=0,0,1)+IF(J81=0,0,1)+IF(J100=0,0,1)+IF(J119=0,0,1)+IF(J138=0,0,1)+IF(J157=0,0,1)+IF(J176=0,0,1)+IF(J195=0,0,1)) -> 534.507 | L196: =(L24+L43+L62+L81+L100+L119+L138+L157+L176+L195)/(IF(L24=0,0,1)+IF(L43=0,0,1)+IF(L62=0,0,1)+IF(L81=0,0,1)+IF(L100=0,0,1)+IF(L119=0,0,1)+IF(L138=0,0,1)+IF(L157=0,0,1)+IF(L176=0,0,1)+IF(L195=0,0,1)) -> 135.14
